fUST/lending_fUST_20260128
["ID","MTS","AMOUNT","RATE_DAILY","PERIOD"]
[403848142,1769593850539,-153.0,0.00023755,2]
[403848144,1769593850548,-153.0,0.00023755,2]
[403848146,1769593850557,-150.47,0.000238,2]
[403848148,1769593850566,-400.0,0.00023836,3]
[403848150,1769593850575,-153.0,0.00023876,2]
[403848152,1769593850583,-730.0,0.000239,3]
[403848153,1769593850592,-400.0,0.0002397,3]
[403848155,1769593850602,-400.0,0.0002397,3]
[403848157,1769593850611,-729.0,0.0002399,3]
[403848159,1769593850620,-1041.66666667,0.00024,7]
[403848174,1769593850728,-10853.26686938,0.00024,30]
[403848176,1769593850750,-466.29767744,0.00024,2]
[403848178,1769593850759,-1000.0,0.00024,14]
[403848180,1769593850768,-6031.53364136,0.00024,30]
[403848182,1769593850777,-160.0,0.00024,7]
[403848184,1769593850786,-1041.66666667,0.00024,7]
[403848186,1769593850795,-160.0,0.00024,7]
[403848188,1769593850804,-10921.43464289,0.00024,7]
[403848190,1769593850813,-2000.0,0.00024,7]
[403848192,1769593850822,-801.13,0.000241,2]
[403848194,1769593850830,-158.63,0.000241,2]
[403848196,1769593850839,-500.0,0.000241,7]
[403848198,1769593850848,-750.0,0.0002411,2]
[403848200,1769593850857,-167.0,0.00024164,7]
[403848202,1769593850866,-1000.0,0.00024196,10]
[403848204,1769593850875,-791.0,0.00024196,10]
[403848205,1769593850885,-234.25,0.000242,7]
[403848207,1769593850894,-190.65,0.000242,2]
[403848209,1769593850903,-586.34,0.000242,7]
[403848210,1769593850912,-809.53764362,0.00024264,2]
[403848211,1769593850921,-152.09,0.000243,2]
[403848212,1769593850930,-10733.53,0.000243,2]
[403848213,1769593850939,-400.0,0.000243,3]
[403848214,1769593850948,-173.0,0.00024356,13]
[403848215,1769593850957,-801.13,0.000244,2]
[403848216,1769593850966,-551.0,0.0002447,3]
[403848217,1769593850976,-400.0,0.0002449,3]
[403848218,1769593850985,-1126.0,0.000245,5]
[403848219,1769593850994,-150.47,0.000245,2]
[403848220,1769593851003,-400.0,0.0002451,3]
[403848221,1769593851012,-319.0,0.00024515,3]
[403848222,1769593851022,-400.0,0.00024515,3]
[403848223,1769593851031,-4176.06,0.000246,14]
[403848224,1769593851040,-730.0,0.0002462,3]
[403848225,1769593851049,-156961.75344059,0.0002465,2]
[403848226,1769593851058,-514.68221531,0.0002465,2]
[403848227,1769593851067,-741.63220281,0.00024658,2]
[403848228,1769593851075,-150.0,0.00024658,2]
[403848229,1769593851084,-380.0,0.00024658,2]
[403848230,1769593851093,-200.0,0.00024658,2]
[403848231,1769593851103,-500.0,0.00024658,2]
[403848232,1769593851112,-172.01,0.000247,7]
[403848233,1769593851122,-194.6865296,0.00024712,2]
[403848234,1769593851131,-194.6865296,0.00024712,2]
[403848235,1769593851142,-194.6865296,0.00024712,2]
[403848236,1769593851151,-194.6865296,0.00024712,2]
[403848237,1769593851159,-194.6865296,0.00024712,2]
[403848238,1769593851168,-194.6865296,0.00024712,2]
[403848239,1769593851177,-194.6865296,0.00024712,2]
[403848240,1769593851188,-194.6865296,0.00024712,2]
[403848241,1769593851198,-389.1879832,0.00024712,2]
[403848242,1769593851207,-194.6865296,0.00024712,2]
[403848243,1769593851216,-194.6865296,0.00024712,2]
[403848244,1769593851226,-194.6865296,0.00024712,2]
[403848245,1769593851236,-194.6865296,0.00024712,2]
[403848246,1769593851245,-194.6865296,0.00024712,2]
[403848247,1769593851255,-194.6865296,0.00024712,2]
[403848248,1769593851264,-194.6865296,0.00024712,2]
[403848249,1769593851274,-194.6865296,0.00024712,2]
[403848250,1769593851283,-194.6865296,0.00024712,2]
[403848251,1769593851293,-194.6865296,0.00024712,2]
[403848252,1769593851302,-194.6865296,0.00024712,2]
[403848253,1769593851312,-16847.56784077,0.00024774,2]
[403848254,1769593851321,-500.0,0.00024795,2]
[403848255,1769593851331,-400.0,0.00024799,3]
[403848256,1769593851340,-801.13,0.000248,2]
[403848257,1769593851349,-730.0,0.00024835,3]
[403848258,1769593851359,-707.82006594,0.000249,30]
[403848259,1769593851368,-152.09,0.000249,2]
[403848260,1769593851378,-452139.36244931,0.000249,2]
[403848261,1769593851400,-151.0,0.00019178,2]
[403848262,1769593851410,-3052.7990783,0.000249,2]
[403848263,1769593851462,-1234.81663869,0.00013092,2]
[403848264,1769593851471,-151.0,0.00019178,2]
[403848265,1769593851479,-151.0,0.00019178,2]
[403848266,1769593851488,-151.0,0.00019178,2]
[403848267,1769593851497,-1412.00221393,0.000249,2]
[403848473,1769594437419,-3714.67038078,0.00012992,2]
[403848585,1769595032111,-213.923,0.00012732,2]
[403848587,1769595032120,-3774.0,0.00012732,5]
[403848589,1769595032130,-305.28909983,0.00012862,2]
[403848591,1769595032139,-92042.19184681,0.00012892,2]
[403848738,1769595038285,-283.57677537,0.00012892,2]
[403848996,1769595043439,-260382.60708965,0.00012892,2]
[403849013,1769595043598,-721.38667753,0.00012892,2]
[403849282,1769595046431,-879.9514622,0.00012892,2]
[403849808,1769595112156,1103.070099,0.00034854,120]
[403849824,1769596084426,19399.89900563,0.00034841,120]
[403849825,1769596109280,215941.78481938,0.00034841,120]
[403849826,1769596110289,10004.82840383,0.00034841,120]
[403849830,1769596225636,-1699.1,0.00012152,2]
[403849844,1769596232221,-1698.37782493,0.00012152,2]
[403849845,1769596232232,-317.19255577,0.00012152,2]
[403849846,1769596232242,-306.76379046,0.00012212,2]
[403849848,1769596232251,-171.138,0.00012634,2]
[403849849,1769596232261,-1077.47645683,0.00012732,2]
[403849850,1769596232271,-1810.13919694,0.00012792,2]
[403849851,1769596232283,-398.0,0.00012792,2]
[403849852,1769596232295,-31753.1544282,0.00012792,2]
[403849883,1769596238419,-281.72769083,0.00012792,2]
[403849970,1769596240647,-17974.22095188,0.00012792,2]
[403850029,1769596244836,-293943.35966435,0.00012792,2]
[403850037,1769596246438,-1679.0421003,0.00012792,2]
[403850389,1769597440718,-275.3169375,0.00011112,2]
[403850390,1769597440728,-1699.0087007,0.00011224,2]
[403850391,1769597440737,-304.7239191,0.00011395,2]
[403850392,1769597440747,-171.138,0.00012536,2]
[403850393,1769597440756,-290.0,0.00012689,2]
[403850394,1769597440765,-1200.0,0.00012689,2]
[403850395,1769597440774,-300.0,0.00012689,2]
[403850396,1769597440783,-500.0,0.0001269,2]
[403850397,1769597440792,-500.0,0.0001269,2]
[403850398,1769597440801,-258.42786128,0.0001269,2]
[403850399,1769597440810,-500.0,0.0001269,2]
[403850400,1769597440818,-500.0,0.0001269,2]
[403850401,1769597440827,-500.0,0.0001269,2]
[403850402,1769597440841,-500.0,0.0001269,2]
[403850403,1769597440850,-500.0,0.0001269,2]
[403850404,1769597440859,-500.0,0.0001269,2]
[403850405,1769597440867,-500.0,0.0001269,2]
[403850406,1769597440876,-500.0,0.0001269,2]
[403850407,1769597440885,-500.0,0.0001269,2]
[403850408,1769597440900,-500.0,0.0001269,2]
[403850409,1769597440909,-500.0,0.0001269,2]
[403850410,1769597440918,-362.52300156,0.0001269,2]
[403850411,1769597440927,-500.0,0.0001269,2]
[403850412,1769597440936,-500.0,0.0001269,2]
[403850413,1769597440945,-441.18456153,0.0001269,2]
[403850414,1769597440954,-500.0,0.0001269,2]
[403850415,1769597440962,-500.0,0.0001269,2]
[403850416,1769597440971,-500.0,0.0001269,2]
[403850417,1769597440980,-500.0,0.0001269,2]
[403850418,1769597440989,-500.0,0.0001269,2]
[403850419,1769597440998,-500.0,0.0001269,2]
[403850420,1769597441007,-500.0,0.0001269,2]
[403850421,1769597441016,-500.0,0.0001269,2]
[403850422,1769597441025,-500.0,0.0001269,2]
[403850423,1769597441036,-500.0,0.0001269,2]
[403850424,1769597441045,-500.0,0.0001269,2]
[403850425,1769597441054,-500.0,0.0001269,2]
[403850426,1769597441064,-500.0,0.0001269,2]
[403850427,1769597441073,-500.0,0.0001269,2]
[403850428,1769597441082,-187.1332741,0.00012691,2]
[403850429,1769597441091,-207.15067827,0.00012691,2]
[403850430,1769597441099,-14959.99417836,0.00012692,2]
[403850514,1769597443798,-1262.70776101,0.00012692,2]
[403850515,1769597443810,-309.73,0.00012692,2]
[403850516,1769597443821,-12644.74011672,0.00012692,2]
[403850517,1769597443831,-608.42003136,0.00012692,2]
[403850541,1769597446680,-2769.49731269,0.00012692,2]
[403850542,1769597446692,-690.80750882,0.00012692,2]
[403850543,1769597446733,-300.0,0.00012692,2]
[403850544,1769597446744,-871.85190565,0.00012692,2]
[403850545,1769597446755,-10931.04221276,0.00012692,2]
[403850546,1769597904071,150.0,0.00010904,2]
[403850594,1769598637738,-1699.1,0.00011977,2]
[403850595,1769598637749,-298.62944071,0.0001203,2]
[403850596,1769598637759,-171.139,0.0001234,2]
[403850597,1769598637768,-160.78,0.000124,2]
[403850598,1769598637777,-500.0,0.00012591,2]
[403850599,1769598637786,-271.24272906,0.00012591,2]
[403850600,1769598637795,-429.1692224,0.00012591,2]
[403850601,1769598637804,-238.77689888,0.00012591,2]
[403850602,1769598637815,-261.22310112,0.00012591,2]
[403850603,1769598637824,-2173.95137723,0.00012592,2]
[403850604,1769598637834,-4464.86730799,0.00012592,2]
[403850605,1769598637845,-3190.64739978,0.00012592,2]
[403850635,1769598645884,-359.7083353,0.00012592,2]
[403850641,1769599423304,400.0,0.0003,120]
[403850644,1769599449688,1623.90951121,0.00034828,120]
[403850645,1769599460349,832.0,0.0003,120]
[403850646,1769599473548,400.0,0.0003,120]
[403850647,1769599721327,1766.92174569,6.546e-05,2]
[403850649,1769599821110,-171.139,0.00012242,2]
[403850650,1769599821135,-80.24586965,0.00012291,2]
[403850651,1769599821147,-171.139,0.00012291,2]
[403850652,1769599821159,-45.4278171,0.00012291,2]
[403850653,1769599821168,-251.38486965,0.00012486,2]
[403850670,1769599831764,-48.61513035,0.00012486,2]
[403850671,1769599831773,-300.0,0.00012486,2]
[403850672,1769599831783,-530.41486965,0.00012486,2]
[403850673,1769599831794,-669.58513035,0.00012486,2]
[403850674,1769599831803,-49.27771595,0.00012487,2]
[403850675,1769599831814,-5962.59812462,0.00012487,2]
[403850676,1769599831830,-534.64380724,0.00012487,2]
[403850677,1769599831841,-9642.69042191,0.00012487,2]
[403850679,1769599831850,-1091.29082529,0.00012492,2]
[403850714,1769599837902,-3717.35345611,0.00012492,2]
[403850716,1769599837914,-2617.29599802,0.00012492,2]
[403850719,1769599837926,-4235.05208888,0.00012492,2]
[403850783,1769599840205,-13339.19759875,0.00012492,2]
[403850800,1769599844094,-500.0,0.00012486,2]
[403850801,1769599844103,-500.0,0.00012486,2]
[403850802,1769599844113,-505.97701634,0.00012486,2]
[403850803,1769599844122,-500.0,0.00012486,2]
[403850804,1769599844131,-500.0,0.00012486,2]
[403850805,1769599844140,-500.0,0.00012486,2]
[403850806,1769599844149,-500.0,0.00012486,2]
[403850807,1769599844158,-500.0,0.00012486,2]
[403850808,1769599844168,-500.0,0.00012486,2]
[403850809,1769599844177,-500.0,0.00012486,2]
[403850810,1769599844186,-500.0,0.00012486,2]
[403850811,1769599844196,-500.0,0.00012486,2]
[403850812,1769599844204,-500.0,0.00012486,2]
[403850813,1769599844213,-500.0,0.00012486,2]
[403850814,1769599844223,-233.56280186,0.00012486,2]
[403850815,1769599844231,-94.85656717,0.00012486,2]
[403850816,1769599844242,-474.27203228,0.00012486,2]
[403850817,1769599844252,-500.0,0.00012486,2]
[403850818,1769599844261,-370.91473043,0.00012486,2]
[403850819,1769599844308,-129.08526957,0.00012486,2]
[403850820,1769599844317,-348.17513657,0.00012486,2]
[403850828,1769599846412,-151.82486343,0.00012486,2]
[403850829,1769599846426,-500.0,0.00012486,2]
[403850830,1769599846438,-500.0,0.00012486,2]
[403850831,1769599846450,-500.0,0.00012486,2]
[403850832,1769599846460,-500.0,0.00012486,2]
[403850833,1769599846472,-198.02340694,0.00012486,2]
[403850843,1769600405926,172.98,0.0001,2]
[403850844,1769600407433,172.98,0.000104,2]
[403850845,1769600408148,172.98,0.000108,2]
[403850868,1769601004920,256.36,0.0001,2]
[403850869,1769601005556,256.36,0.000104,2]
[403850870,1769601006215,256.36,0.000108,2]
[403850904,1769601031929,-1781.20518151,0.00011088,2]
[403850907,1769601031941,-615.97903324,0.00011088,2]
[403850909,1769601031952,-576.0,0.00011088,2]
[403850911,1769601031961,-172.98,0.000112,2]
[403850913,1769601031971,-160.78,0.000112,2]
[403850915,1769601031980,-256.36,0.000112,2]
[403850917,1769601031990,-373.75664804,0.00011281,2]
[403850919,1769601031999,-172.98,0.000116,2]
[403850922,1769601032009,-256.36,0.000116,2]
[403850925,1769601032018,-172.98,0.000121,2]
[403850928,1769601032027,-256.36,0.000121,2]
[403850931,1769601032036,-207.90929385,0.00012142,2]
[403850934,1769601032045,-300.0,0.00012387,2]
[403850937,1769601032054,-264.69766763,0.00012388,2]
[403850940,1769601032063,-500.0,0.00012388,2]
[403850943,1769601032072,-500.0,0.00012388,2]
[403850946,1769601032081,-341.01428883,0.00012388,2]
[403850949,1769601032091,-212.95421465,0.00012391,2]
[403850951,1769601032100,-171.13925871,0.00012391,2]
[403850953,1769601032109,-151.0,0.00012392,2]
[403850955,1769601032118,-8681.56372287,0.00012392,2]
[403851035,1769601037989,-1711318.43627713,0.00012392,2]
[403851036,1769601037999,-1452.70393971,0.000124,2]
[403851038,1769601038008,-172.98,0.000125,2]
[403851040,1769601038018,-256.36,0.000125,2]
[403851041,1769601038028,-6257.7520014,0.00012504,2]
[403851042,1769601038038,-1391.8249567,0.00012504,2]
[403851043,1769601038048,-723.2444162,0.00012504,2]
[403851044,1769601038057,-288.165348,0.00012504,2]
[403851045,1769601038067,-680.55935822,0.0001269,2]
[403851046,1769601038077,-2722.23743288,0.0001269,2]
[403851047,1769601038087,-962.05971617,0.0001269,2]
[403851048,1769601038096,-3848.23886468,0.0001269,2]
[403851049,1769601038105,-6125.03422399,0.0001269,2]
[403851050,1769601038116,-8658.53744553,0.0001269,2]
[403851051,1769601038126,-172.98,0.000129,2]
[403851052,1769601038136,-10733.76361561,0.000129,2]
[403851053,1769601038145,-256.36,0.000129,2]
[403851054,1769601038155,-500.0,0.00012977,2]
[403851055,1769601038166,-500.0,0.00013114,2]
[403851056,1769601038176,-500.0,0.00013251,2]
[403851057,1769601038186,-300.0,0.00013251,2]
[403851058,1769601038195,-300.0,0.00013251,2]
[403851059,1769601038205,-300.0,0.00013251,2]
[403851060,1769601038214,-300.0,0.00013251,2]
[403851061,1769601038224,-300.0,0.00013251,2]
[403851062,1769601038234,-300.0,0.00013251,2]
[403851063,1769601038244,-300.0,0.00013251,2]
[403851064,1769601038254,-300.0,0.00013251,2]
[403851065,1769601038263,-300.0,0.00013251,2]
[403851066,1769601038273,-300.0,0.00013251,2]
[403851067,1769601038282,-300.0,0.00013251,2]
[403851068,1769601038292,-300.0,0.00013251,2]
[403851069,1769601038301,-300.0,0.00013251,2]
[403851070,1769601038310,-300.0,0.00013251,2]
[403851071,1769601038320,-300.0,0.00013251,2]
[403851072,1769601038329,-600.0,0.00013251,2]
[403851073,1769601038339,-500.0,0.00013273,2]
[403851074,1769601038349,-500.0,0.00013273,2]
[403851075,1769601038358,-500.0,0.00013273,2]
[403851076,1769601038368,-500.0,0.00013273,2]
[403851077,1769601038379,-500.0,0.00013273,2]
[403851078,1769601038389,-441.03284468,0.00013281,2]
[403851079,1769601038399,-172.98,0.000133,2]
[403851080,1769601038408,-256.36,0.000133,2]
[403851081,1769601038418,-500.0,0.00013388,2]
[403851082,1769601038427,-150.0,0.00013424,2]
[403851083,1769601038437,-150.0,0.00013424,2]
[403851084,1769601038446,-88034.28174752,0.00013491,2]
[403851085,1769601038455,-500.0,0.00013525,2]
[403851086,1769601038464,-150.0,0.00013561,2]
[403851087,1769601038473,-250.0,0.00013561,2]
[403851088,1769601038483,-420.0,0.00013593,2]
[403851089,1769601038492,-500.0,0.00013662,2]
[403851090,1769601038501,-300.0,0.00013673,2]
[403851091,1769601038510,-500.0,0.00013698,2]
[403851092,1769601038519,-500.0,0.00013698,2]
[403851093,1769601038528,-500.0,0.00013698,2]
[403851094,1769601038538,-500.0,0.00013698,2]
[403851095,1769601038550,-500.0,0.00013698,2]
[403851096,1769601038559,-500.0,0.00013698,2]
[403851097,1769601038569,-500.0,0.00013698,2]
[403851098,1769601038579,-500.0,0.00013698,2]
[403851099,1769601038743,-500.0,0.00013698,2]
[403851100,1769601038774,-245.05641761,0.00013698,2]
[403851101,1769601038795,-500.0,0.00013698,2]
[403851102,1769601038819,-500.0,0.00013698,2]
[403851103,1769601038841,-500.0,0.00013698,2]
[403851104,1769601038863,-500.0,0.00013698,2]
[403851105,1769601038887,-500.0,0.00013698,2]
[403851106,1769601038913,-500.0,0.00013698,2]
[403851107,1769601038935,-500.0,0.00013698,2]
[403851108,1769601038957,-500.0,0.00013698,2]
[403851109,1769601038978,-500.0,0.00013698,2]
[403851110,1769601039000,-500.0,0.00013698,2]
[403851111,1769601039022,-500.0,0.00013698,2]
[403851112,1769601039037,-500.0,0.00013698,2]
[403851113,1769601039050,-500.0,0.00013698,2]
[403851114,1769601039061,-500.0,0.00013698,2]
[403851115,1769601039072,-500.0,0.00013698,2]
[403851116,1769601039082,-500.0,0.00013698,2]
[403851117,1769601039092,-500.0,0.00013698,2]
[403851118,1769601039102,-500.0,0.00013698,2]
[403851119,1769601039113,-500.0,0.00013698,2]
[403851120,1769601039123,-500.0,0.00013698,2]
[403851121,1769601039140,-193.84758249,0.00013698,2]
[403851122,1769601039152,-500.0,0.00013698,2]
[403851123,1769601039162,-500.0,0.00013698,2]
[403851124,1769601039172,-500.0,0.00013698,2]
[403851125,1769601039182,-500.0,0.00013698,2]
[403851126,1769601039191,-500.0,0.00013698,2]
[403851127,1769601039201,-500.0,0.00013698,2]
[403851128,1769601039210,-500.0,0.00013698,2]
[403851129,1769601039220,-500.0,0.00013698,2]
[403851130,1769601039230,-500.0,0.00013698,2]
[403851131,1769601039239,-321.00935932,0.00013698,2]
[403851132,1769601039249,-500.0,0.00013698,2]
[403851133,1769601039259,-500.0,0.00013698,2]
[403851134,1769601039268,-231.9426637,0.00013698,2]
[403851135,1769601039277,-500.0,0.00013698,2]
[403851136,1769601039287,-500.0,0.00013698,2]
[403851137,1769601039296,-500.0,0.00013698,2]
[403851138,1769601039305,-199.72375222,0.00013698,2]
[403851139,1769601039314,-500.0,0.00013698,2]
[403851140,1769601039324,-500.0,0.00013698,2]
[403851141,1769601039333,-520.34475145,0.00013698,2]
[403851142,1769601039342,-493.63025993,0.00013698,2]
[403851143,1769601039351,-500.0,0.00013698,2]
[403851144,1769601039360,-756.27,0.00013698,2]
[403851145,1769601039369,-756.27,0.00013698,2]
[403851146,1769601039381,-756.27,0.00013698,2]
[403851147,1769601039391,-756.27,0.00013698,2]
[403851148,1769601039400,-756.27,0.00013698,2]
[403851149,1769601039409,-756.27,0.00013698,2]
[403851150,1769601039419,-756.27,0.00013698,2]
[403851151,1769601039429,-756.27,0.00013698,2]
[403851152,1769601039439,-756.27,0.00013698,2]
[403851153,1769601039448,-756.27,0.00013698,2]
[403851154,1769601039457,-756.27,0.00013698,2]
[403851155,1769601039467,-756.27,0.00013698,2]
[403851156,1769601039476,-756.27,0.00013698,2]
[403851157,1769601039485,-756.27,0.00013698,2]
[403851158,1769601039495,-756.27,0.00013698,2]
[403851159,1769601039504,-756.27,0.00013698,2]
[403851162,1769601039514,-756.27,0.00013698,2]
[403851163,1769601039523,-756.27,0.00013698,2]
[403851165,1769601039532,-756.27,0.00013698,2]
[403851166,1769601039541,-756.27,0.00013698,2]
[403851168,1769601039550,-756.27,0.00013698,2]
[403851170,1769601039559,-756.27,0.00013698,2]
[403851172,1769601039568,-756.27,0.00013698,2]
[403851174,1769601039577,-756.41785257,0.00013698,2]
[403851176,1769601039587,-500.0,0.00013699,2]
[403851177,1769601039597,-500.0,0.00013699,2]
[403851179,1769601039606,-1000.0,0.00013699,2]
[403851180,1769601039615,-990.372128,0.00013699,2]
[403851182,1769601039625,-178.945783,0.00013699,2]
[403851183,1769601039635,-500.0,0.00013699,2]
[403851185,1769601039644,-500.0,0.00013699,2]
[403851186,1769601039654,-500.0,0.00013699,2]
[403851187,1769601039663,-500.0,0.00013699,2]
[403851188,1769601039672,-500.0,0.00013699,2]
[403851189,1769601039681,-260.16839164,0.00013699,2]
[403851190,1769601039690,-500.0,0.00013699,2]
[403851191,1769601039700,-500.0,0.00013699,2]
[403851192,1769601039709,-500.0,0.00013699,2]
[403851193,1769601039718,-500.0,0.00013699,2]
[403851194,1769601039729,-500.0,0.00013699,2]
[403851195,1769601039740,-506.10991888,0.00013699,2]
[403851196,1769601039750,-500.0,0.00013699,2]
[403851197,1769601039760,-443.49274844,0.00013699,2]
[403851198,1769601039771,-320.04248703,0.00013699,2]
[403851199,1769601039780,-532.28183888,0.00013699,2]
[403851200,1769601039789,-500.0,0.00013699,2]
[403851201,1769601039799,-445.1362178,0.00013699,2]
[403851202,1769601039808,-500.0,0.00013699,2]
[403851203,1769601039820,-500.0,0.00013699,2]
[403851204,1769601039829,-150.0,0.00013699,2]
[403851206,1769601039839,-213.84661778,0.00013699,2]
[403851207,1769601039847,-500.41621604,0.00013699,2]
[403851209,1769601039857,-500.0,0.00013699,2]
[403851210,1769601039866,-500.0,0.00013699,2]
[403851211,1769601039876,-500.0,0.00013699,2]
[403851212,1769601039885,-500.0,0.00013699,2]
[403851213,1769601039894,-500.0,0.00013699,2]
[403851214,1769601039904,-500.0,0.00013699,2]
[403851215,1769601039913,-500.0,0.00013699,2]
[403851216,1769601039923,-500.0,0.00013699,2]
[403851217,1769601039933,-500.0,0.00013699,2]
[403851219,1769601039943,-500.0,0.00013699,2]
[403851221,1769601039952,-500.0,0.00013699,2]
[403851223,1769601039962,-500.0,0.00013699,2]
[403851225,1769601039971,-500.0,0.00013699,2]
[403851227,1769601039980,-501.48666107,0.00013699,2]
[403851229,1769601039990,-501.77042598,0.00013699,2]
[403851231,1769601039999,-500.0,0.00013699,2]
[403851233,1769601040010,-501.93478625,0.00013699,2]
[403851235,1769601040019,-172.98,0.000137,2]
[403851237,1769601040028,-256.36,0.000137,2]
[403851239,1769601040038,-500.0,0.00013799,2]
[403851241,1769601040047,-1000.0,0.00013821,2]
[403851243,1769601040056,-1000.0,0.00013821,2]
[403851245,1769601040064,-1000.0,0.00013821,2]
[403851247,1769601040074,-1000.0,0.00013821,2]
[403851249,1769601040084,-1000.0,0.00013821,2]
[403851251,1769601040093,-500.0,0.00013936,2]
[403851253,1769601040102,-206.36876951,0.00013989,2]
[403851255,1769601040111,-160.09522763,0.00013989,2]
[403851257,1769601040120,-100000.0,0.0001399,2]
[403851259,1769601040130,-250.0,0.00014,2]
[403851261,1769601040139,-250.0,0.00014,2]
[403851263,1769601040148,-250.0,0.00014,2]
[403851265,1769601040158,-250.0,0.00014,2]
[403851267,1769601040167,-250.0,0.00014,2]
[403851269,1769601040176,-250.0,0.00014,2]
[403851271,1769601040186,-217.8,0.00014,2]
[403851273,1769601040195,-500.0,0.00014073,2]
[403851275,1769601040204,-1396.2932062,0.00014091,2]
[403851277,1769601040213,-172.98,0.000141,2]
[403851279,1769601040223,-256.36,0.000141,2]
[403851281,1769601040232,-500.0,0.0001421,2]
[403851283,1769601040242,-600.0,0.00014221,2]
[403851285,1769601040252,-2150.0,0.00014222,2]
[403851287,1769601040261,-630.0,0.00014222,2]
[403851289,1769601040270,-1369.0,0.00014222,2]
[403851291,1769601040279,-150.0,0.00014222,2]
[403851293,1769601040289,-152.2334305,0.00014247,2]
[403851294,1769601040297,-500.0,0.00014247,2]
[403851296,1769601040307,-195.11370284,0.00014247,2]
[403851298,1769601040316,-800.60461598,0.00014247,2]
[403851301,1769601040326,-509.85507396,0.00014247,2]
[403851303,1769601040336,-159.31465189,0.00014247,2]
[403851305,1769601040345,-250.0,0.00014247,2]
[403851307,1769601040354,-722.3651231,0.00014247,2]
[403851308,1769601040363,-1000.0,0.00014247,2]
[403851310,1769601040373,-505.03835844,0.00014247,2]
[403851312,1769601040385,-1002.16076125,0.00014247,2]
[403851314,1769601040394,-378.71570647,0.00014247,2]
[403851316,1769601040403,-653.47281249,0.00014247,2]
[403851318,1769601040412,-501.67094293,0.00014247,2]
[403851320,1769601040422,-1000.0,0.00014247,2]
[403851323,1769601040432,-1000.0,0.00014247,2]
[403851324,1769601040442,-1001.40716094,0.00014247,2]
[403851326,1769601040451,-898.31661661,0.00014247,2]
[403851328,1769601040460,-1000.0,0.00014247,2]
[403851330,1769601040470,-508.49522103,0.00014247,2]
[403851332,1769601040479,-363.24821694,0.00014347,2]
[403851334,1769601040488,-1500.0,0.00014368,2]
[403851336,1769601040497,-1500.0,0.00014368,2]
[403851338,1769601040506,-1500.0,0.00014368,2]
[403851340,1769601040515,-1500.0,0.00014368,2]
[403851342,1769601040524,-1500.0,0.00014368,2]
[403851344,1769601040532,-311.5551267,0.00014445,2]
[403851346,1769601040541,-150.0,0.00014462,2]
[403851348,1769601040550,-150.0,0.00014462,2]
[403851350,1769601040559,-150.0,0.00014462,2]
[403851352,1769601040568,-172.98,0.000145,2]
[403851354,1769601040577,-256.36,0.000145,2]
[403851356,1769601040586,-720.0,0.00014576,2]
[403851358,1769601040595,-900.0,0.00014768,2]
[403851360,1769601040604,-300.0,0.00014795,2]
[403851362,1769601040613,-1000.68775555,0.00014795,2]
[403851364,1769601040621,-1500.0,0.00014795,2]
[403851366,1769601040631,-1026.28781016,0.00014795,2]
[403851368,1769601040641,-1000.0,0.00014795,2]
[403851370,1769601040650,-172.98,0.000149,2]